fUST/lending_fUST_20250821
["ID","MTS","AMOUNT","RATE_DAILY","PERIOD"]
[380437710,1755767442064,-151.0,0.00021917,2]
[380437711,1755767442076,-151.0,0.00021917,2]
[380437712,1755767442088,-151.0,0.00021917,2]
[380437713,1755767442100,-480.0,0.00021917,3]
[380437714,1755767442112,-480.0,0.00021917,3]
[380437715,1755767442124,-762.93,0.00021917,3]
[380437716,1755767442136,-480.0,0.00021917,3]
[380437717,1755767442148,-480.0,0.00021917,3]
[380437718,1755767442160,-480.0,0.00021917,3]
[380437719,1755767442173,-480.0,0.00021917,3]
[380437720,1755767442184,-1068.84,0.00021917,3]
[380437721,1755767442196,-901.63,0.00021917,3]
[380437722,1755767442207,-480.0,0.00021917,3]
[380437723,1755767442219,-480.0,0.00021917,3]
[380437724,1755767442231,-480.0,0.00021917,3]
[380437725,1755767442243,-480.0,0.00021917,3]
[380437726,1755767442254,-480.0,0.00021917,3]
[380437727,1755767442266,-439.72513874,0.00021917,3]
[380437728,1755767442278,-480.0,0.00021917,3]
[380437729,1755767442292,-169.19616102,0.00021917,3]
[380437730,1755767442304,-480.0,0.00021917,3]
[380437731,1755767442315,-480.0,0.00021917,3]
[380437732,1755767442328,-480.0,0.00021917,3]
[380437733,1755767442339,-480.0,0.00021917,3]
[380437734,1755767442351,-480.0,0.00021917,3]
[380437735,1755767442362,-480.0,0.00021917,3]
[380437736,1755767442373,-354.81303825,0.00021917,3]
[380437737,1755767442400,-125.18696175,0.00021917,3]
[380437738,1755767442411,-285.51847052,0.00021917,3]
[380437739,1755767442425,-194.48152948,0.00021917,3]
[380437740,1755767442437,-480.0,0.00021917,3]
[380437741,1755767442450,-480.0,0.00021917,3]
[380437742,1755767442462,-480.0,0.00021917,3]
[380437743,1755767442473,-480.0,0.00021917,3]
[380437744,1755767442484,-480.0,0.00021917,3]
[380437745,1755767442499,-480.0,0.00021917,3]
[380437746,1755767442512,-480.0,0.00021917,3]
[380437747,1755767442525,-480.0,0.00021917,3]
[380437748,1755767442538,-702.19,0.00021917,3]
[380437749,1755767442550,-480.0,0.00021917,3]
[380437750,1755767442562,-480.0,0.00021917,3]
[380437751,1755767442575,-480.0,0.00021917,3]
[380437752,1755767442587,-480.0,0.00021917,3]
[380437753,1755767442599,-1102.75,0.00021917,3]
[380437754,1755767442611,-480.0,0.00021917,3]
[380437755,1755767442623,-593.63757005,0.00021917,3]
[380437756,1755767442635,-151.0,0.00021917,2]
[380437757,1755767442647,-153.412941,0.00021917,2]
[380437758,1755767442658,-480.0,0.00021917,3]
[380437759,1755767442670,-480.0,0.00021917,3]
[380437760,1755767442682,-480.0,0.00021917,3]
[380437761,1755767442693,-480.0,0.00021917,3]
[380437762,1755767442704,-480.0,0.00021917,3]
[380437763,1755767442715,-151.0,0.00021917,2]
[380437764,1755767442727,-151.0,0.00021917,2]
[380437765,1755767442738,-724.19,0.00021917,3]
[380437766,1755767442750,-480.0,0.00021917,3]
[380437767,1755767442761,-480.0,0.00021917,3]
[380437768,1755767442773,-329.27219756,0.00021917,3]
[380437769,1755767442784,-592.1,0.00021917,3]
[380437770,1755767442797,-1038.35,0.00021917,3]
[380437771,1755767442807,-480.0,0.00021917,3]
[380437772,1755767442819,-480.0,0.00021917,3]
[380437773,1755767442832,-480.0,0.00021917,3]
[380437774,1755767442846,-480.0,0.00021917,3]
[380437775,1755767442858,-480.0,0.00021917,3]
[380437776,1755767442870,-480.0,0.00021917,2]
[380437777,1755767442883,-1158.52,0.00021917,3]
[380437778,1755767442895,-480.0,0.00021917,3]
[380437779,1755767442906,-480.0,0.00021917,3]
[380437780,1755767442919,-480.0,0.00021917,3]
[380437781,1755767442931,-480.0,0.00021917,3]
[380437782,1755767442943,-480.0,0.00021917,3]
[380437783,1755767442955,-480.0,0.00021917,3]
[380437784,1755767442966,-480.0,0.00021917,3]
[380437785,1755767442978,-480.0,0.00021917,3]
[380437786,1755767442989,-151.0,0.00021917,2]
[380437787,1755767443002,-151.0,0.00021917,2]
[380437789,1755767443013,-480.0,0.00021917,3]
[380437790,1755767443025,-480.0,0.00021917,3]
[380437791,1755767443038,-410.17317928,0.00021917,3]
[380437792,1755767443050,-493.84,0.00021917,3]
[380437793,1755767443063,-151.0,0.00021917,2]
[380437794,1755767443074,-480.0,0.00021917,3]
[380437795,1755767443085,-151.0,0.00021917,2]
[380437796,1755767443096,-480.0,0.00021917,3]
[380437797,1755767443107,-480.0,0.00021917,3]
[380437798,1755767443119,-543.63,0.00021917,3]
[380437799,1755767443131,-480.0,0.00021917,3]
[380437800,1755767443143,-480.0,0.00021917,3]
[380437801,1755767443154,-480.0,0.00021917,3]
[380437802,1755767443164,-405.34231876,0.00021917,3]
[380437803,1755767443174,-151.0,0.00021917,2]
[380437804,1755767443183,-151.0,0.00021917,2]
[380437805,1755767443193,-151.0,0.00021917,2]
[380437806,1755767443202,-480.0,0.00021917,3]
[380437807,1755767443211,-151.0,0.00021917,2]
[380437808,1755767443221,-1777.61,0.00021917,3]
[380437809,1755767443231,-480.0,0.00021917,3]
[380437810,1755767443240,-480.0,0.00021917,3]
[380437811,1755767443250,-480.0,0.00021917,3]
[380437812,1755767443259,-480.0,0.00021917,3]
[380437814,1755767443269,-460.48418222,0.00021917,3]
[380437816,1755767443282,-480.0,0.00021917,3]
[380437818,1755767443293,-480.0,0.00021917,3]
[380437820,1755767443302,-480.0,0.00021917,3]
[380437822,1755767443312,-641.63,0.00021917,3]
[380437824,1755767443322,-480.0,0.00021917,3]
[380437826,1755767443331,-480.0,0.00021917,3]
[380437833,1755767443341,-480.0,0.00021917,3]
[380437834,1755767443625,-480.0,0.00021917,3]
[380437835,1755767443647,-959.01,0.00021917,3]
[380437836,1755767443657,-480.0,0.00021917,3]
[380437837,1755767443666,-480.0,0.00021917,3]
[380437838,1755767443675,-480.0,0.00021917,3]
[380437839,1755767443685,-480.0,0.00021917,3]
[380437840,1755767443694,-480.0,0.00021917,3]
[380437841,1755767443703,-480.0,0.00021917,3]
[380437842,1755767443712,-807.8,0.00021917,3]
[380437843,1755767443721,-480.0,0.00021917,3]
[380437844,1755767443730,-480.0,0.00021917,3]
[380437845,1755767443740,-480.0,0.00021917,3]
[380437846,1755767443749,-1512.57,0.00021917,3]
[380437847,1755767443759,-480.0,0.00021917,3]
[380437848,1755767443770,-480.0,0.00021917,3]
[380437849,1755767443779,-480.0,0.00021917,3]
[380437850,1755767443789,-480.0,0.00021917,3]
[380437851,1755767443798,-480.0,0.00021917,3]
[380437852,1755767443808,-480.0,0.00021917,3]
[380437853,1755767443817,-480.0,0.00021917,3]
[380437854,1755767443827,-480.0,0.00021917,3]
[380437856,1755767443839,-392.12530496,0.00021917,3]
[380437857,1755767443850,-480.0,0.00021917,3]
[380437858,1755767443861,-480.0,0.00021917,3]
[380437859,1755767443871,-711.03,0.00021917,3]
[380437860,1755767443881,-993.47,0.00021917,3]
[380437861,1755767443891,-500.0,0.00021917,3]
[380437862,1755767443901,-500.0,0.00021917,3]
[380437863,1755767443910,-500.0,0.00021917,3]
[380437864,1755767443919,-500.0,0.00021917,3]
[380437865,1755767443929,-480.0,0.00021917,3]
[380437866,1755767443938,-500.0,0.00021917,3]
[380437867,1755767443947,-500.0,0.00021917,3]
[380437868,1755767443957,-500.0,0.00021917,3]
[380437869,1755767443967,-500.0,0.00021917,3]
[380437870,1755767443976,-500.0,0.00021917,3]
[380437871,1755767443985,-480.0,0.00021917,3]
[380437872,1755767443994,-151.0,0.00021917,2]
[380437873,1755767444003,-151.0,0.00021917,2]
[380437874,1755767444013,-151.0,0.00021917,2]
[380437875,1755767444023,-151.0,0.00021917,2]
[380437876,1755767444034,-480.0,0.00021917,3]
[380437877,1755767444043,-151.0,0.00021917,2]
[380437878,1755767444053,-151.0,0.00021917,2]
[380437879,1755767444062,-536.4,0.00021917,3]
[380437880,1755767444072,-151.0,0.00021917,2]
[380437881,1755767444080,-238.482766,0.00021917,2]
[380437882,1755767444090,-480.0,0.00021917,3]
[380437883,1755767444099,-480.0,0.00021917,3]
[380437884,1755767444109,-480.0,0.00021917,3]
[380437885,1755767444118,-480.0,0.00021917,3]
[380437886,1755767444128,-480.0,0.00021917,3]
[380437887,1755767444137,-474.56175683,0.00021917,3]
[380437888,1755767444147,-480.0,0.00021917,3]
[380437889,1755767444157,-480.0,0.00021917,3]
[380437890,1755767444167,-480.0,0.00021917,3]
[380437891,1755767444177,-480.0,0.00021917,3]
[380437892,1755767444187,-151.0,0.00021917,2]
[380437893,1755767444196,-151.0,0.00021917,2]
[380437894,1755767444205,-480.0,0.00021917,3]
[380437895,1755767444215,-519.52,0.00021917,3]
[380437896,1755767444226,-480.0,0.00021917,3]
[380437897,1755767444236,-480.0,0.00021917,3]
[380437898,1755767444245,-480.0,0.00021917,3]
[380437899,1755767444256,-480.0,0.00021917,3]
[380437900,1755767444265,-480.0,0.00021917,3]
[380437901,1755767444276,-2785.8,0.00021917,3]
[380437902,1755767444285,-480.0,0.00021917,3]
[380437903,1755767444294,-480.0,0.00021917,3]
[380437904,1755767444304,-347.03094161,0.00021917,3]
[380437905,1755767444314,-480.0,0.00021917,3]
[380437906,1755767444323,-480.0,0.00021917,3]
[380437907,1755767444333,-480.0,0.00021917,3]
[380437908,1755767444342,-480.0,0.00021917,3]
[380437909,1755767444351,-480.0,0.00021917,3]
[380437910,1755767444360,-480.0,0.00021917,3]
[380437911,1755767444370,-480.0,0.00021917,3]
[380437912,1755767444379,-535.84,0.00021917,3]
[380437913,1755767444388,-480.0,0.00021917,3]
[380437914,1755767444398,-480.0,0.00021917,3]
[380437915,1755767444407,-480.0,0.00021917,3]
[380437916,1755767444417,-480.0,0.00021917,3]
[380437917,1755767444426,-480.0,0.00021917,3]
[380437918,1755767444435,-480.0,0.00021917,3]
[380437919,1755767444445,-480.0,0.00021917,3]
[380437920,1755767444454,-480.0,0.00021917,3]
[380437921,1755767444464,-963.31,0.00021917,3]
[380437922,1755767444474,-480.0,0.00021917,3]
[380437923,1755767444483,-480.0,0.00021917,3]
[380437924,1755767444497,-632.34,0.00021917,3]
[380437925,1755767444506,-480.0,0.00021917,3]
[380437926,1755767444516,-480.0,0.00021917,3]
[380437927,1755767444525,-480.0,0.00021917,3]
[380437928,1755767444535,-480.0,0.00021917,3]
[380437929,1755767444545,-480.0,0.00021917,3]
[380437930,1755767444554,-1075.15,0.00021917,3]
[380437931,1755767444564,-279.54835824,0.00021917,3]
[380437932,1755767444574,-453.71889673,0.00021917,3]
[380437933,1755767444583,-480.0,0.00021917,3]
[380437934,1755767444593,-480.0,0.00021917,3]
[380437935,1755767444603,-508.46,0.00021917,3]
[380437936,1755767444614,-480.0,0.00021917,3]
[380437937,1755767444624,-1753.184821,0.00021917,2]
[380437938,1755767444634,-480.0,0.00021917,3]
[380437939,1755767444643,-480.0,0.00021917,3]
[380437940,1755767444652,-480.0,0.00021917,3]
[380437941,1755767444661,-151.0,0.00021917,2]
[380437942,1755767444671,-480.0,0.00021917,3]
[380437943,1755767444681,-151.0,0.00021917,2]
[380437944,1755767444690,-480.0,0.00021917,3]
[380437945,1755767444699,-480.0,0.00021917,3]
[380437946,1755767444709,-480.0,0.00021917,3]
[380437947,1755767444718,-468.40001593,0.00021917,3]
[380437948,1755767444727,-1406.24,0.00021917,3]
[380437949,1755767444737,-480.0,0.00021917,3]
[380437950,1755767444746,-946.67,0.00021917,3]
[380437951,1755767444756,-480.0,0.00021917,3]
[380437952,1755767444766,-480.0,0.00021917,3]
[380437953,1755767444775,-967.41,0.00021917,3]
[380437954,1755767444785,-480.0,0.00021917,3]
[380437955,1755767444795,-151.0,0.00021917,2]
[380437956,1755767444805,-151.0,0.00021917,2]
[380437957,1755767444814,-480.0,0.00021917,3]
[380437958,1755767444825,-480.0,0.00021917,3]
[380437959,1755767444837,-445.41215413,0.00021917,3]
[380437960,1755767444846,-480.0,0.00021917,3]
[380437961,1755767444856,-480.0,0.00021917,3]
[380437962,1755767444865,-480.0,0.00021917,3]
[380437963,1755767444875,-480.0,0.00021917,3]
[380437964,1755767444884,-545.78,0.00021917,3]
[380437965,1755767444893,-480.0,0.00021917,3]
[380437966,1755767444903,-480.51118576,0.00021917,3]
[380437967,1755767444913,-2764.0,0.00021917,3]
[380437968,1755767444922,-480.0,0.00021917,3]
[380437969,1755767444932,-480.0,0.00021917,3]
[380437970,1755767444941,-666.12,0.00021917,3]
[380437971,1755767444951,-480.0,0.00021917,3]
[380437972,1755767444961,-480.0,0.00021917,3]
[380437973,1755767444970,-480.0,0.00021917,3]
[380437974,1755767444979,-1204.87,0.00021917,3]
[380437975,1755767444989,-480.0,0.00021917,3]
[380437976,1755767444999,-626.27,0.00021917,3]
[380437977,1755767445008,-480.0,0.00021917,3]
[380437978,1755767445018,-460.0,0.00021917,3]
[380437979,1755767445028,-480.0,0.00021917,3]
[380437980,1755767445039,-480.0,0.00021917,3]
[380437981,1755767445049,-480.0,0.00021917,3]
[380437982,1755767445058,-151.0,0.00021917,2]
[380437983,1755767445067,-151.0,0.00021917,2]
[380437984,1755767445078,-200.356239,0.00021917,2]
[380437985,1755767445088,-480.0,0.00021917,3]
[380437986,1755767445098,-480.0,0.00021917,3]
[380437987,1755767445108,-480.0,0.00021917,3]
[380437988,1755767445120,-480.0,0.00021917,3]
[380437989,1755767445129,-480.0,0.00021917,3]
[380437990,1755767445139,-168.861644,0.00021917,2]
[380437991,1755767445148,-151.0,0.00021917,2]
[380437992,1755767445157,-151.772893,0.00021917,2]
[380437993,1755767445166,-1481.74,0.00021917,3]
[380437994,1755767445176,-480.0,0.00021917,3]
[380437995,1755767445186,-412.53302531,0.00021917,3]
[380437996,1755767445196,-1455.47,0.00021917,3]
[380437997,1755767445205,-167.07066,0.00021917,2]
[380437998,1755767445214,-167.07066,0.00021917,2]
[380437999,1755767445225,-167.07066,0.00021917,2]
[380438000,1755767445236,-151.0,0.00021917,2]
[380438001,1755767445245,-167.07066,0.00021917,2]
[380438002,1755767445256,-151.80457,0.00021917,2]
[380438003,1755767445266,-167.07066,0.00021917,2]
[380438004,1755767445277,-167.07066,0.00021917,2]
[380438005,1755767445287,-906.12,0.00021917,3]
[380438006,1755767445297,-167.07066,0.00021917,2]
[380438007,1755767445307,-167.07066,0.00021917,2]
[380438008,1755767445317,-480.0,0.00021917,3]
[380438009,1755767445326,-151.0,0.00021917,2]
[380438010,1755767445336,-167.07066,0.00021917,2]
[380438011,1755767445347,-167.07066,0.00021917,2]
[380438012,1755767445357,-151.0,0.00021917,2]
[380438013,1755767445367,-167.07066,0.00021917,2]
[380438014,1755767445376,-167.07066,0.00021917,2]
[380438015,1755767445385,-185.913177,0.00021917,2]
[380438016,1755767445395,-480.0,0.00021917,3]
[380438017,1755767445404,-185.913177,0.00021917,2]
[380438018,1755767445414,-151.0,0.00021917,2]
[380438019,1755767445423,-151.0,0.00021917,2]
[380438020,1755767445432,-185.913177,0.00021917,2]
[380438021,1755767445442,-151.0,0.00021917,2]
[380438022,1755767445451,-151.0,0.00021917,2]
[380438023,1755767445460,-165.528779,0.00021917,2]
[380438024,1755767445470,-480.0,0.00021917,3]
[380438025,1755767445479,-185.913177,0.00021917,2]
[380438026,1755767445488,-641.5,0.00021917,3]
[380438027,1755767445497,-480.0,0.00021917,3]
[380438028,1755767445506,-185.913177,0.00021917,2]
[380438029,1755767445515,-185.913177,0.00021917,2]
[380438030,1755767445524,-480.0,0.00021917,3]
[380438031,1755767445534,-480.0,0.00021917,3]
[380438032,1755767445543,-151.0,0.00021917,2]
[380438033,1755767445553,-185.913177,0.00021917,2]
[380438034,1755767445562,-151.0,0.00021917,2]
[380438035,1755767445571,-185.913177,0.00021917,2]
[380438036,1755767445580,-151.0,0.00021917,2]
[380438037,1755767445589,-1256.38,0.00021917,3]
[380438038,1755767445598,-185.913177,0.00021917,2]
[380438039,1755767445607,-151.0,0.00021917,2]
[380438040,1755767445616,-185.913177,0.00021917,2]
[380438041,1755767445626,-264.938239,0.00021917,2]
[380438042,1755767445635,-185.913177,0.00021917,2]
[380438043,1755767445644,-185.913177,0.00021917,2]
[380438044,1755767445654,-480.0,0.00021917,3]
[380438045,1755767445664,-480.0,0.00021917,3]
[380438046,1755767445674,-480.0,0.00021917,3]
[380438047,1755767445682,-1000.0,0.00021917,3]
[380438048,1755767445692,-480.0,0.00021917,3]
[380438049,1755767445702,-873.67,0.00021917,3]
[380438050,1755767445711,-480.0,0.00021917,3]
[380438051,1755767445720,-555.18119961,0.00021917,3]
[380438052,1755767445729,-480.0,0.00021917,3]
[380438053,1755767445739,-480.0,0.00021917,3]
[380438054,1755767445748,-480.0,0.00021917,3]
[380438055,1755767445757,-480.0,0.00021917,3]
[380438056,1755767445766,-480.0,0.00021917,3]
[380438057,1755767445775,-480.0,0.00021917,3]
[380438058,1755767445785,-480.0,0.00021917,3]
[380438059,1755767445795,-480.0,0.00021917,3]
[380438060,1755767445804,-480.0,0.00021917,3]
[380438061,1755767445813,-480.0,0.00021917,3]
[380438062,1755767445822,-472.36763228,0.00021917,3]
[380438063,1755767445832,-550.07338692,0.00021917,3]
[380438064,1755767445848,-480.0,0.00021917,3]
[380438065,1755767445858,-480.0,0.00021917,3]
[380438066,1755767445867,-464.78658964,0.00021917,3]
[380438067,1755767445876,-1448.8,0.00021917,3]
[380438068,1755767445886,-480.0,0.00021917,3]
[380438069,1755767445895,-151.0,0.00021917,2]
[380438070,1755767445905,-151.0,0.00021917,2]
[380438071,1755767445914,-480.0,0.00021917,3]
[380438072,1755767445923,-179.733719,0.00021917,2]
[380438073,1755767445933,-492.93,0.00021917,3]
[380438074,1755767445943,-480.0,0.00021917,3]
[380438075,1755767445952,-151.0,0.00021917,2]
[380438076,1755767445961,-151.0,0.00021917,2]
[380438077,1755767445970,-151.0,0.00021917,2]
[380438078,1755767445979,-480.0,0.00021917,3]
[380438079,1755767445989,-480.0,0.00021917,3]
[380438080,1755767445998,-151.0,0.00021917,2]
[380438081,1755767446007,-480.0,0.00021917,3]
[380438082,1755767446016,-701.26,0.00021917,3]
[380438083,1755767446026,-480.0,0.00021917,3]
[380438085,1755767446036,-480.0,0.00021917,3]
[380438086,1755767446045,-158.26384925,0.00021917,3]
[380438087,1755767446054,-481.24619718,0.00021917,3]
[380438088,1755767446063,-480.0,0.00021917,3]
[380438089,1755767446073,-480.0,0.00021917,3]
[380438090,1755767446082,-480.0,0.00021917,3]
[380438091,1755767446091,-200.0,0.00021917,3]
[380438092,1755767446101,-500.0,0.00021917,3]
[380438093,1755767446110,-151.0,0.00021917,2]
[380438094,1755767446120,-151.0,0.00021917,2]
[380438095,1755767446129,-151.0,0.00021917,2]
[380438096,1755767446138,-480.0,0.00021917,3]
[380438097,1755767446147,-480.0,0.00021917,3]
[380438098,1755767446157,-151.0,0.00021917,2]
[380438099,1755767446167,-480.0,0.00021917,3]
[380438100,1755767446177,-151.0,0.00021917,2]
[380438101,1755767446186,-151.0,0.00021917,2]
[380438103,1755767446196,-151.0,0.00021917,2]
[380438104,1755767446205,-151.0,0.00021917,2]
[380438105,1755767446214,-264.87489,0.00021917,2]
[380438106,1755767446224,-480.0,0.00021917,3]
[380438107,1755767446234,-480.0,0.00021917,3]
[380438108,1755767446244,-480.0,0.00021917,3]
[380438109,1755767446253,-291.08028581,0.00021917,3]
[380438119,1755767446874,-188.91971419,0.00021917,3]
[380438120,1755767446884,-152.24841717,0.00021917,3]
[380438121,1755767446895,-328.42791454,0.00021917,3]
[380438122,1755767446904,-480.0,0.00021917,3]
[380438123,1755767446914,-480.0,0.00021917,3]
[380438124,1755767446923,-480.0,0.00021917,3]
[380438125,1755767446934,-417.15472785,0.00021917,3]
[380438126,1755767446943,-480.0,0.00021917,3]
[380438127,1755767446952,-480.0,0.00021917,3]
[380438128,1755767446962,-480.0,0.00021917,3]
[380438129,1755767446971,-480.0,0.00021917,3]
[380438130,1755767446980,-480.0,0.00021917,3]
[380438131,1755767446990,-480.0,0.00021917,3]
[380438132,1755767446999,-480.0,0.00021917,3]
[380438133,1755767447008,-421.54989379,0.00021917,3]
[380438134,1755767447017,-500.0,0.00021917,2]
[380438135,1755767447026,-480.0,0.00021917,3]
[380438136,1755767447035,-151.0,0.00021917,2]
[380438137,1755767447044,-480.0,0.00021917,3]
[380438138,1755767447053,-480.0,0.00021917,3]
[380438139,1755767447063,-480.0,0.00021917,3]
[380438140,1755767447072,-480.0,0.00021917,3]
[380438141,1755767447081,-460.38459116,0.00021917,3]
[380438142,1755767447091,-480.0,0.00021917,3]
[380438143,1755767447099,-480.0,0.00021917,3]
[380438144,1755767447109,-480.0,0.00021917,3]
[380438145,1755767447118,-151.0,0.00021917,3]
[380438146,1755767447127,-431.48286566,0.00021917,3]
[380438147,1755767447504,-3754.85238066,0.00021245,2]
[380438148,1755767447514,-48.51713434,0.00021917,3]
[380438149,1755767447524,-151.0,0.00021917,2]
[380438150,1755767447534,-151.0,0.00021917,2]
[380438151,1755767447544,-597.59143134,0.00021917,3]
[380438152,1755767447553,-151.0,0.00021917,2]
[380438153,1755767447562,-151.0,0.00021917,2]
[380438154,1755767447572,-500.0,0.00021917,3]
[380438155,1755767447582,-151.0,0.00021917,2]
[380438156,1755767447591,-151.0,0.00021917,2]
[380438157,1755767447600,-480.0,0.00021917,3]
[380438158,1755767447610,-151.0,0.00021917,2]
[380438159,1755767447619,-151.0,0.00021917,2]
[380438160,1755767447629,-151.0,0.00021917,2]
[380438161,1755767447638,-480.0,0.00021917,3]
[380438162,1755767447647,-480.0,0.00021917,3]
[380438163,1755767447657,-682.12,0.00021917,3]
[380438164,1755767447668,-151.0,0.00021917,2]
[380438165,1755767447678,-159.911312,0.00021917,2]
[380438166,1755767447689,-480.0,0.00021917,3]
[380438167,1755767447699,-259.769084,0.00021917,2]
[380438168,1755767447708,-480.0,0.00021917,3]
[380438169,1755767447718,-151.0,0.00021917,2]
[380438170,1755767447727,-480.0,0.00021917,3]
[380438171,1755767447737,-151.0,0.00021917,2]
[380438172,1755767447746,-186.012097,0.00021917,2]
[380438173,1755767447755,-480.0,0.00021917,3]
[380438174,1755767447766,-480.0,0.00021917,3]
[380438175,1755767447775,-3458.60655603,0.00021917,3]
[380438176,1755767447824,-4160.32344397,0.00021917,3]
[380438177,1755767447836,-480.0,0.00021917,3]
[380438178,1755767447846,-422.73946152,0.00021917,3]
[380438179,1755767447855,-151.0,0.00021917,2]
[380438180,1755767447864,-151.0,0.00021917,2]
[380438181,1755767447874,-480.0,0.00021917,3]
[380438182,1755767447883,-480.0,0.00021917,3]
[380438183,1755767447893,-559.00376998,0.00021917,3]
[380438184,1755767447902,-480.0,0.00021917,3]
[380438185,1755767447913,-39.07317995,0.00021917,3]
[380438186,1755767447937,-440.92682005,0.00021917,3]
[380438187,1755767447948,-237.59925067,0.00021917,3]
[380438188,1755767447958,-480.0,0.00021917,3]
[380438189,1755767447971,-28.80873006,0.00021917,3]
[380438190,1755767447998,-451.19126994,0.00021917,3]
[380438191,1755767448009,-165.70881533,0.00021917,3]
[380438192,1755767448018,-480.0,0.00021917,3]
[380438193,1755767448028,-1437.3,0.00021917,3]
[380438194,1755767448037,-261.52296666,0.00021917,3]
[380438195,1755767448047,-480.0,0.00021917,3]
[380438196,1755767448056,-480.0,0.00021917,3]
[380438197,1755767448066,-2528.4,0.00021917,3]
[380438198,1755767448075,-68.77011849,0.00021917,3]
[380438200,1755767472308,300.0,0.00026,120]
[380438201,1755767554377,300.0,0.00026,120]
[380438212,1755767617004,300.0,0.00026,120]
[380438213,1755767638387,300.0,0.00026,120]
[380438214,1755767649903,1278.47091546,0.0002,2]
[380438215,1755767655476,240.34929031,0.00019817,2]
[380438226,1755767842286,300.0,0.0002,2]
[380438232,1755767956596,160.2328602,0.00019817,2]
[380438233,1755768094777,168.0,0.00019786,2]
[380438234,1755768148582,1000.0,0.00027325,60]
[380438235,1755768168469,1069.0,0.0002191,120]
[380438236,1755768168800,737.0,0.0002191,120]
[380438237,1755768168830,150.5,0.0002191,120]
[380438238,1755768169015,1069.0,0.000219,120]
[380438239,1755768169329,737.0,0.000219,120]
[380438240,1755768169361,150.5,0.000219,120]
[380438241,1755768169578,1069.0,0.0002189,120]
[380438242,1755768169875,150.5,0.0002189,120]
[380438243,1755768169905,737.0,0.0002189,120]
[380438244,1755768170169,1069.0,0.00023551,120]
[380438245,1755768170389,150.5,0.00023551,120]
[380438246,1755768170495,737.0,0.00023551,120]
[380438247,1755768170727,1069.0,0.00023541,120]
[380438248,1755768171060,737.0,0.00023541,120]
[380438249,1755768171276,1069.0,0.00023531,120]
[380438250,1755768171305,150.5,0.00023541,120]
[380438251,1755768171615,737.0,0.00023531,120]
[380438252,1755768171825,1069.0,0.0002546,120]
[380438253,1755768171856,150.5,0.00023531,120]
[380438254,1755768172187,737.0,0.0002546,120]
[380438255,1755768172380,190.46,0.0002546,120]
[380438256,1755768172410,1069.0,0.0002545,120]
[380438257,1755768172724,737.0,0.0002545,120]
[380438258,1755768172925,1069.0,0.0002729,120]
[380438259,1755768173279,737.0,0.0002729,120]
[380438260,1755768173495,1075.58,0.0002728,120]
[380438261,1755768174256,738.13,0.0002728,120]